[Event "Titled Tuesday Blitz April 25 Early 2023"]
[White "Aradhya, Garg"]
[Black "Movahed, Sina"]
[WhiteFideId "25006746"]
[BlackFideId "42520835"]
[WhiteElo "2263"]
[BlackElo "2225"]
[Result "1-0"]
[Round "09"]
[TimeControl "180+2"]
[Date "2023.04.25"]
[WhiteClock "0:01:01"]
[BlackClock "0:01:47"]

1. d4 {[%clk 0:03:00]}  Nf6 {[%clk 0:03:00]} 2. c4 {[%clk 0:03:01]}  g6 {[%clk 0:03:00]} 3. Nf3 {[%clk 0:03:00]}  Bg7 {[%clk 0:03:00]} 4. g3 {[%clk 0:03:00]}  O-O {[%clk 0:03:01]} 5. Bg2 {[%clk 0:03:00]}  d6 {[%clk 0:03:01]} 6. Nc3 {[%clk 0:03:00]}  Nbd7 {[%clk 0:03:02]} 7. O-O {[%clk 0:03:01]}  e5 {[%clk 0:03:02]} 8. h3 {[%clk 0:02:58]}  Re8 {[%clk 0:03:01]} 9. e4 {[%clk 0:02:58]}  exd4 {[%clk 0:03:01]} 10. Nxd4 {[%clk 0:02:59]}  Nc5 {[%clk 0:03:02]} 11. Re1 {[%clk 0:02:59]}  h6 {[%clk 0:03:02]} 12. b3 {[%clk 0:02:55]}  c6 {[%clk 0:02:59]} 13. Bb2 {[%clk 0:02:54]}  a5 {[%clk 0:02:58]} 14. Qc2 {[%clk 0:02:47]}  a4 {[%clk 0:02:58]} 15. Rad1 {[%clk 0:02:47]}  Qb6 {[%clk 0:02:52]} 16. Nxa4 {[%clk 0:02:02]}  Nxa4 {[%clk 0:02:47]} 17. bxa4 {[%clk 0:02:03]}  Qa6 {[%clk 0:02:33]} 18. Nb3 {[%clk 0:02:03]}  Be6 {[%clk 0:02:33]} 19. Rxd6 {[%clk 0:02:02]}  Qxc4 {[%clk 0:02:32]} 20. Qxc4 {[%clk 0:02:01]}  Bxc4 {[%clk 0:02:33]} 21. Bxf6 {[%clk 0:02:02]}  Bxf6 {[%clk 0:02:22]} 22. Rxf6 {[%clk 0:02:02]}  Rxa4 {[%clk 0:02:21]} 23. Nc5 {[%clk 0:02:02]}  Ra7 {[%clk 0:02:21]} 24. a4 {[%clk 0:01:55]}  Re5 {[%clk 0:02:19]} 25. Nd7 {[%clk 0:01:52]}  Re7 {[%clk 0:02:18]} 26. Nb6 {[%clk 0:01:47]}  Be6 {[%clk 0:02:18]} 27. Rf3 {[%clk 0:01:47]}  Ra6 {[%clk 0:02:18]} 28. Rb1 {[%clk 0:01:47]}  Kf8 {[%clk 0:02:15]} 29. Bf1 {[%clk 0:01:47]}  Ra5 {[%clk 0:02:14]} 30. Rd3 {[%clk 0:01:40]}  Ke8 {[%clk 0:02:14]} 31. Rbd1 {[%clk 0:01:37]}  Rc7 {[%clk 0:02:14]} 32. Rd8+ {[%clk 0:01:36]}  Ke7 {[%clk 0:02:14]} 33. Rb8 {[%clk 0:01:34]}  Rc5 {[%clk 0:02:12]} 34. Na8 {[%clk 0:01:25]}  Rd7 {[%clk 0:02:10]} 35. Rxd7+ {[%clk 0:01:24]}  Kxd7 {[%clk 0:02:11]} 36. Rxb7+ {[%clk 0:01:25]}  Kd6 {[%clk 0:02:12]} 37. Rb1 {[%clk 0:01:19]}  Ke5 {[%clk 0:02:05]} 38. Bg2 {[%clk 0:01:10]}  g5 {[%clk 0:02:03]} 39. Nb6 {[%clk 0:01:07]}  Rc2 {[%clk 0:02:00]} 40. Ra1 {[%clk 0:01:03]}  Rb2 {[%clk 0:01:51]} 41. a5 {[%clk 0:01:03]}  c5 {[%clk 0:01:50]} 42. a6 {[%clk 0:01:02]}  Rxb6 {[%clk 0:01:47]} 43. a7 {[%clk 0:01:01]} 1-0


[Site "https://www.chess.com"]

[Event "Titled Tuesday Blitz April 25 Early 2023"]
[White "Koellner, Ruben Gideon"]
[Black "Galchenko, Matvey"]
[WhiteFideId "12993093"]
[BlackFideId "24175480"]
[WhiteElo "2314"]
[BlackElo "2423"]
[Result "0-1"]
[Round "09"]
[TimeControl "180+2"]
[Date "2023.04.25"]
[WhiteClock "0:00:02"]
[BlackClock "0:00:06"]

1. d4 {[%clk 0:02:52]}  Nf6 {[%clk 0:02:57]} 2. Nf3 {[%clk 0:02:01]}  c5 {[%clk 0:02:56]} 3. e3 {[%clk 0:02:01]}  g6 {[%clk 0:02:56]} 4. Nbd2 {[%clk 0:02:01]}  cxd4 {[%clk 0:02:55]} 5. exd4 {[%clk 0:02:02]}  Bg7 {[%clk 0:02:56]} 6. c3 {[%clk 0:02:02]}  O-O {[%clk 0:02:57]} 7. Bd3 {[%clk 0:02:03]}  d6 {[%clk 0:02:57]} 8. O-O {[%clk 0:02:03]}  Nc6 {[%clk 0:02:58]} 9. Re1 {[%clk 0:02:04]}  e5 {[%clk 0:02:58]} 10. dxe5 {[%clk 0:02:04]}  dxe5 {[%clk 0:02:58]} 11. Ne4 {[%clk 0:02:05]}  Qc7 {[%clk 0:02:53]} 12. Nxf6+ {[%clk 0:02:03]}  Bxf6 {[%clk 0:02:54]} 13. Bh6 {[%clk 0:02:03]}  Re8 {[%clk 0:02:52]} 14. Bc4 {[%clk 0:01:59]}  Be6 {[%clk 0:02:22]} 15. Bxe6 {[%clk 0:01:58]}  Rxe6 {[%clk 0:02:22]} 16. Qb3 {[%clk 0:01:58]}  Rae8 {[%clk 0:02:13]} 17. Ng5 {[%clk 0:01:55]}  Bxg5 {[%clk 0:01:57]} 18. Bxg5 {[%clk 0:01:56]}  Kg7 {[%clk 0:01:58]} 19. Rad1 {[%clk 0:01:54]}  f6 {[%clk 0:01:56]} 20. Be3 {[%clk 0:01:54]}  R6e7 {[%clk 0:01:43]} 21. Bc5 {[%clk 0:01:44]}  Rd7 {[%clk 0:01:43]} 22. Rxd7+ {[%clk 0:01:44]}  Qxd7 {[%clk 0:01:44]} 23. Rd1 {[%clk 0:01:45]}  Qc7 {[%clk 0:01:42]} 24. Qb5 {[%clk 0:01:34]}  a6 {[%clk 0:01:28]} 25. Qb3 {[%clk 0:01:17]}  h5 {[%clk 0:00:48]} 26. Bb6 {[%clk 0:01:12]}  Qf7 {[%clk 0:00:45]} 27. Qa3 {[%clk 0:01:09]}  h4 {[%clk 0:00:41]} 28. h3 {[%clk 0:01:08]}  e4 {[%clk 0:00:38]} 29. Qd6 {[%clk 0:01:03]}  Ne5 {[%clk 0:00:35]} 30. Bd4 {[%clk 0:00:36]}  Nd3 {[%clk 0:00:35]} 31. b3 {[%clk 0:00:32]}  Re6 {[%clk 0:00:31]} 32. Qb8 {[%clk 0:00:29]}  g5 {[%clk 0:00:26]} 33. Qc8 {[%clk 0:00:25]}  Re7 {[%clk 0:00:19]} 34. Rd2 {[%clk 0:00:22]}  Qe6 {[%clk 0:00:18]} 35. Qxe6 {[%clk 0:00:12]}  Rxe6 {[%clk 0:00:19]} 36. f3 {[%clk 0:00:13]}  Nf4 {[%clk 0:00:14]} 37. fxe4 {[%clk 0:00:12]}  Rxe4 {[%clk 0:00:15]} 38. Kf2 {[%clk 0:00:12]}  Kg6 {[%clk 0:00:15]} 39. Be3 {[%clk 0:00:10]}  Nh5 {[%clk 0:00:09]} 40. c4 {[%clk 0:00:09]}  Ng3 {[%clk 0:00:07]} 41. Bd4 {[%clk 0:00:08]}  Re6 {[%clk 0:00:06]} 42. Rd3 {[%clk 0:00:04]}  Rd6 {[%clk 0:00:05]} 43. Rd1 {[%clk 0:00:02]}  f5 {[%clk 0:00:06]} 0-1


[Site "https://www.chess.com"]

[Event "Titled Tuesday Blitz April 25 Early 2023"]
[White "Kollars, Dmitrij"]
[Black "djokovic74"]
[WhiteFideId "12909572"]
[WhiteElo "2584"]
[BlackElo "2628"]
[Result "1-0"]
[Round "09"]
[TimeControl "180+2"]
[Date "2023.04.25"]
[WhiteClock "0:00:57"]
[BlackClock "0:00:03"]

1. d4 {[%clk 0:03:00]}  e6 {[%clk 0:02:58]} 2. Nf3 {[%clk 0:03:00]}  Nf6 {[%clk 0:02:58]} 3. c4 {[%clk 0:02:59]}  Bb4+ {[%clk 0:02:58]} 4. Nbd2 {[%clk 0:02:57]}  O-O {[%clk 0:02:49]} 5. a3 {[%clk 0:02:56]}  Be7 {[%clk 0:02:43]} 6. e4 {[%clk 0:02:56]}  d6 {[%clk 0:02:43]} 7. Bd3 {[%clk 0:02:56]}  e5 {[%clk 0:02:38]} 8. O-O {[%clk 0:02:56]}  exd4 {[%clk 0:02:36]} 9. Nxd4 {[%clk 0:02:57]}  Nc6 {[%clk 0:02:36]} 10. Nxc6 {[%clk 0:02:54]}  bxc6 {[%clk 0:02:36]} 11. h3 {[%clk 0:02:47]}  a5 {[%clk 0:02:35]} 12. b3 {[%clk 0:02:44]}  Nd7 {[%clk 0:02:33]} 13. f4 {[%clk 0:02:39]}  Bf6 {[%clk 0:02:28]} 14. Ra2 {[%clk 0:02:37]}  Nc5 {[%clk 0:02:27]} 15. Bc2 {[%clk 0:02:36]}  Re8 {[%clk 0:02:23]} 16. Bb2 {[%clk 0:02:30]}  Bxb2 {[%clk 0:02:18]} 17. Rxb2 {[%clk 0:02:31]}  Qf6 {[%clk 0:02:18]} 18. Rb1 {[%clk 0:02:30]}  Qd4+ {[%clk 0:02:08]} 19. Kh1 {[%clk 0:02:28]}  Bd7 {[%clk 0:02:02]} 20. Qe1 {[%clk 0:02:11]}  Qc3 {[%clk 0:01:36]} 21. Rc1 {[%clk 0:02:11]}  f5 {[%clk 0:01:08]} 22. e5 {[%clk 0:02:08]}  Qb2 {[%clk 0:01:08]} 23. Nf3 {[%clk 0:02:00]}  Nxb3 {[%clk 0:00:51]} 24. Bxb3 {[%clk 0:01:47]}  Qxb3 {[%clk 0:00:51]} 25. Rc3 {[%clk 0:01:48]}  Qb6 {[%clk 0:00:51]} 26. c5 {[%clk 0:01:47]}  dxc5 {[%clk 0:00:50]} 27. Qc1 {[%clk 0:01:40]}  Be6 {[%clk 0:00:47]} 28. Rxc5 {[%clk 0:01:38]}  Bd5 {[%clk 0:00:47]} 29. Nd4 {[%clk 0:01:38]}  Qa6 {[%clk 0:00:39]} 30. Nxf5 {[%clk 0:01:29]}  Qd3 {[%clk 0:00:33]} 31. Ne3 {[%clk 0:01:28]}  Be4 {[%clk 0:00:19]} 32. Rd1 {[%clk 0:01:27]}  Qa6 {[%clk 0:00:20]} 33. Qc4+ {[%clk 0:01:27]}  Qxc4 {[%clk 0:00:19]} 34. Rxc4 {[%clk 0:01:27]}  Bd5 {[%clk 0:00:17]} 35. Nxd5 {[%clk 0:01:27]}  cxd5 {[%clk 0:00:17]} 36. Rxd5 {[%clk 0:01:28]}  Re7 {[%clk 0:00:17]} 37. Ra4 {[%clk 0:01:24]}  Rb8 {[%clk 0:00:16]} 38. Rdxa5 {[%clk 0:01:23]}  Rb1+ {[%clk 0:00:16]} 39. Kh2 {[%clk 0:01:24]}  h5 {[%clk 0:00:16]} 40. Kg3 {[%clk 0:01:22]}  Rd7 {[%clk 0:00:14]} 41. Rb4 {[%clk 0:01:18]}  Rg1 {[%clk 0:00:10]} 42. Rb2 {[%clk 0:01:08]}  Rf1 {[%clk 0:00:08]} 43. Rb3 {[%clk 0:01:02]}  Rd2 {[%clk 0:00:07]} 44. e6 {[%clk 0:01:00]}  Re1 {[%clk 0:00:05]} 45. Re5 {[%clk 0:00:55]}  Rxe5 {[%clk 0:00:03]} 46. Rb8+ {[%clk 0:00:55]}  Kh7 {[%clk 0:00:02]} 47. fxe5 {[%clk 0:00:56]}  Re2 {[%clk 0:00:01]} 48. e7 {[%clk 0:00:56]}  Rxe5 {[%clk 0:00:02]} 49. e8=Q {[%clk 0:00:56]}  Rxe8 {[%clk 0:00:03]} 50. Rxe8 {[%clk 0:00:57]} 1-0


[Site "https://www.chess.com"]

[Event "Titled Tuesday Blitz April 25 Early 2023"]
[White "Manukyan, Sargis A."]
[Black "Kuzubov, Yuriy"]
[WhiteFideId "13303970"]
[BlackFideId "14112906"]
[WhiteElo "2187"]
[BlackElo "2496"]
[Result "1/2-1/2"]
[Round "09"]
[TimeControl "180+2"]
[Date "2023.04.25"]
[WhiteClock "0:00:06"]
[BlackClock "0:00:28"]

1. d4 {[%clk 0:03:00]}  Nf6 {[%clk 0:02:56]} 2. c4 {[%clk 0:03:01]}  e6 {[%clk 0:02:56]} 3. Nc3 {[%clk 0:03:01]}  Bb4 {[%clk 0:02:57]} 4. a3 {[%clk 0:03:02]}  Bxc3+ {[%clk 0:02:56]} 5. bxc3 {[%clk 0:03:03]}  b6 {[%clk 0:02:57]} 6. e3 {[%clk 0:03:01]}  Ba6 {[%clk 0:02:57]} 7. Bd3 {[%clk 0:03:01]}  Nc6 {[%clk 0:02:57]} 8. e4 {[%clk 0:03:01]}  Na5 {[%clk 0:02:57]} 9. e5 {[%clk 0:03:02]}  Ng8 {[%clk 0:02:57]} 10. Qg4 {[%clk 0:03:02]}  g6 {[%clk 0:02:57]} 11. Qe2 {[%clk 0:03:03]}  d5 {[%clk 0:02:45]} 12. cxd5 {[%clk 0:02:57]}  Bxd3 {[%clk 0:02:45]} 13. Qxd3 {[%clk 0:02:58]}  Qxd5 {[%clk 0:02:45]} 14. Nf3 {[%clk 0:02:56]}  Qc4 {[%clk 0:02:36]} 15. Qxc4 {[%clk 0:02:43]}  Nxc4 {[%clk 0:02:36]} 16. Nd2 {[%clk 0:02:43]}  Na5 {[%clk 0:02:32]} 17. a4 {[%clk 0:02:42]}  Ne7 {[%clk 0:02:30]} 18. Ba3 {[%clk 0:02:42]}  Nec6 {[%clk 0:02:23]} 19. O-O-O {[%clk 0:02:36]}  O-O-O {[%clk 0:02:21]} 20. Kc2 {[%clk 0:02:33]}  h5 {[%clk 0:02:20]} 21. h4 {[%clk 0:02:32]}  Rd7 {[%clk 0:02:14]} 22. Ne4 {[%clk 0:02:26]}  Nc4 {[%clk 0:02:12]} 23. Bc1 {[%clk 0:02:26]}  Ne7 {[%clk 0:02:10]} 24. Bg5 {[%clk 0:02:20]}  Nd5 {[%clk 0:02:08]} 25. Nf6 {[%clk 0:02:20]}  Nxf6 {[%clk 0:02:00]} 26. Bxf6 {[%clk 0:02:21]}  Re8 {[%clk 0:01:59]} 27. Kb3 {[%clk 0:02:21]}  Na5+ {[%clk 0:01:58]} 28. Kb4 {[%clk 0:02:06]}  Kb7 {[%clk 0:01:48]} 29. c4 {[%clk 0:02:06]}  Rxd4 {[%clk 0:01:44]} 30. Rxd4 {[%clk 0:02:03]}  c5+ {[%clk 0:01:45]} 31. Kc3 {[%clk 0:02:04]}  cxd4+ {[%clk 0:01:45]} 32. Kxd4 {[%clk 0:02:00]}  Rc8 {[%clk 0:01:46]} 33. Rd1 {[%clk 0:01:50]}  Rxc4+ {[%clk 0:01:44]} 34. Ke3 {[%clk 0:01:50]}  Kc7 {[%clk 0:01:45]} 35. Rd8 {[%clk 0:01:47]}  Rxa4 {[%clk 0:01:33]} 36. Rf8 {[%clk 0:01:46]}  Nc4+ {[%clk 0:01:31]} 37. Kd3 {[%clk 0:01:41]}  b5 {[%clk 0:01:28]} 38. Rxf7+ {[%clk 0:01:41]}  Kc6 {[%clk 0:01:27]} 39. Re7 {[%clk 0:01:32]}  Ra2 {[%clk 0:01:24]} 40. Rxe6+ {[%clk 0:01:26]}  Kd5 {[%clk 0:01:24]} 41. Re7 {[%clk 0:01:11]}  Rxf2 {[%clk 0:01:23]} 42. Rd7+ {[%clk 0:00:55]}  Ke6 {[%clk 0:01:22]} 43. Re7+ {[%clk 0:00:55]}  Kf5 {[%clk 0:01:20]} 44. g3 {[%clk 0:00:30]}  a5 {[%clk 0:01:07]} 45. Bg7 {[%clk 0:00:25]}  Rd2+ {[%clk 0:00:54]} 46. Kc3 {[%clk 0:00:25]}  Ke4 {[%clk 0:00:52]} 47. Rb7 {[%clk 0:00:19]}  Rd3+ {[%clk 0:00:51]} 48. Kc2 {[%clk 0:00:18]}  b4 {[%clk 0:00:38]} 49. e6 {[%clk 0:00:18]}  b3+ {[%clk 0:00:38]} 50. Rxb3 {[%clk 0:00:16]}  Ne3+ {[%clk 0:00:37]} 51. Kb2 {[%clk 0:00:15]}  Rxb3+ {[%clk 0:00:38]} 52. Kxb3 {[%clk 0:00:16]}  Nf5 {[%clk 0:00:37]} 53. Bf6 {[%clk 0:00:14]}  Kd5 {[%clk 0:00:37]} 54. e7 {[%clk 0:00:13]}  Nd6 {[%clk 0:00:37]} 55. Ka4 {[%clk 0:00:13]}  Ke6 {[%clk 0:00:37]} 56. Bg5 {[%clk 0:00:14]}  Kf7 {[%clk 0:00:37]} 57. Kxa5 {[%clk 0:00:14]}  Nf5 {[%clk 0:00:38]} 58. Bf4 {[%clk 0:00:13]}  Kxe7 {[%clk 0:00:37]} 59. Kb5 {[%clk 0:00:14]}  Ke6 {[%clk 0:00:36]} 60. Kc4 {[%clk 0:00:15]}  Ne7 {[%clk 0:00:36]} 61. Kd4 {[%clk 0:00:15]}  Kf5 {[%clk 0:00:37]} 62. Ke3 {[%clk 0:00:15]}  Kg4 {[%clk 0:00:37]} 63. Kf2 {[%clk 0:00:14]}  Nd5 {[%clk 0:00:37]} 64. Bb8 {[%clk 0:00:14]}  Nf6 {[%clk 0:00:37]} 65. Kg2 {[%clk 0:00:14]}  Ne4 {[%clk 0:00:37]} 66. Bc7 {[%clk 0:00:15]}  Nc3 {[%clk 0:00:37]} 67. Bb8 {[%clk 0:00:15]}  Nd5 {[%clk 0:00:37]} 68. Bd6 {[%clk 0:00:15]}  Ne3+ {[%clk 0:00:38]} 69. Kh2 {[%clk 0:00:15]}  Nf5 {[%clk 0:00:38]} 70. Bb8 {[%clk 0:00:14]}  Kf3 {[%clk 0:00:38]} 71. Bc7 {[%clk 0:00:14]}  Ne3 {[%clk 0:00:38]} 72. Bb8 {[%clk 0:00:13]}  Nf1+ {[%clk 0:00:39]} 73. Kh3 {[%clk 0:00:14]}  Nd2 {[%clk 0:00:36]} 74. Bc7 {[%clk 0:00:14]}  Ne4 {[%clk 0:00:35]} 75. Bb8 {[%clk 0:00:14]}  Nf6 {[%clk 0:00:35]} 76. Bc7 {[%clk 0:00:14]}  Kf2 {[%clk 0:00:35]} 77. Be5 {[%clk 0:00:13]}  Ng4 {[%clk 0:00:35]} 78. Bd4+ {[%clk 0:00:13]}  Kf1 {[%clk 0:00:35]} 79. Bc5 {[%clk 0:00:12]}  Nh6 {[%clk 0:00:35]} 80. Be3 {[%clk 0:00:12]}  Nf5 {[%clk 0:00:34]} 81. Bc5 {[%clk 0:00:11]}  Nh6 {[%clk 0:00:34]} 82. Be3 {[%clk 0:00:11]}  Ng4 {[%clk 0:00:35]} 83. Bd4 {[%clk 0:00:12]}  Ke2 {[%clk 0:00:35]} 84. Bc5 {[%clk 0:00:12]}  Kf3 {[%clk 0:00:35]} 85. Bd4 {[%clk 0:00:12]}  Nh6 {[%clk 0:00:35]} 86. Bg7 {[%clk 0:00:12]}  Nf5 {[%clk 0:00:35]} 87. Be5 {[%clk 0:00:12]}  Ne3 {[%clk 0:00:36]} 88. Bb8 {[%clk 0:00:11]}  Ng4 {[%clk 0:00:37]} 89. Bd6 {[%clk 0:00:07]}  Nf2+ {[%clk 0:00:36]} 90. Kh2 {[%clk 0:00:07]}  Ne4 {[%clk 0:00:37]} 91. Bb8 {[%clk 0:00:07]}  Nd2 {[%clk 0:00:38]} 92. Bc7 {[%clk 0:00:07]}  Nf1+ {[%clk 0:00:38]} 93. Kh3 {[%clk 0:00:07]}  Kf2 {[%clk 0:00:38]} 94. Bb8 {[%clk 0:00:07]}  Kf3 {[%clk 0:00:38]} 95. Bc7 {[%clk 0:00:07]}  Ne3 {[%clk 0:00:38]} 96. Bb8 {[%clk 0:00:07]}  Nf5 {[%clk 0:00:36]} 97. Bc7 {[%clk 0:00:07]}  Nd4 {[%clk 0:00:34]} 98. Bb6 {[%clk 0:00:06]}  Ne2 {[%clk 0:00:34]} 99. Bc7 {[%clk 0:00:06]}  Ng1+ {[%clk 0:00:34]} 100. Kh2 {[%clk 0:00:05]}  Ne2 {[%clk 0:00:35]} 101. Kh3 {[%clk 0:00:06]}  Nc1 {[%clk 0:00:34]} 102. Kh2 {[%clk 0:00:06]}  Nd3 {[%clk 0:00:33]} 103. Kh3 {[%clk 0:00:06]}  Nf2+ {[%clk 0:00:33]} 104. Kh2 {[%clk 0:00:07]}  Ne4 {[%clk 0:00:32]} 105. Bb8 {[%clk 0:00:06]}  Kf2 {[%clk 0:00:31]} 106. Ba7+ {[%clk 0:00:06]}  Kf1 {[%clk 0:00:31]} 107. Bb8 {[%clk 0:00:07]}  Nf6 {[%clk 0:00:28]} 108. Be5 {[%clk 0:00:06]}  Ng4+ {[%clk 0:00:28]} 1/2-1/2


[Site "https://www.chess.com"]

[Event "Titled Tuesday Blitz April 25 Early 2023"]
[White "Narayanan, Srinath"]
[Black "Kucuksari, Kaan"]
[WhiteFideId "5018420"]
[BlackFideId "6380166"]
[WhiteElo "2438"]
[BlackElo "2364"]
[Result "0-1"]
[Round "09"]
[TimeControl "180+2"]
[Date "2023.04.25"]
[WhiteClock "0:00:28"]
[BlackClock "0:00:12"]

1. Nf3 {[%clk 0:02:55]}  Nf6 {[%clk 0:03:00]} 2. c4 {[%clk 0:02:54]}  g6 {[%clk 0:03:00]} 3. b3 {[%clk 0:02:51]}  Bg7 {[%clk 0:03:01]} 4. Bb2 {[%clk 0:02:49]}  O-O {[%clk 0:03:02]} 5. g3 {[%clk 0:02:48]}  d6 {[%clk 0:03:01]} 6. Bg2 {[%clk 0:02:49]}  e5 {[%clk 0:03:01]} 7. O-O {[%clk 0:02:49]}  Re8 {[%clk 0:03:01]} 8. Nc3 {[%clk 0:02:47]}  Nbd7 {[%clk 0:02:56]} 9. d3 {[%clk 0:02:48]}  c6 {[%clk 0:02:53]} 10. Nd2 {[%clk 0:02:48]}  h5 {[%clk 0:02:42]} 11. b4 {[%clk 0:02:49]}  h4 {[%clk 0:02:41]} 12. b5 {[%clk 0:02:49]}  cxb5 {[%clk 0:02:17]} 13. Nxb5 {[%clk 0:02:50]}  Nc5 {[%clk 0:02:17]} 14. a4 {[%clk 0:02:49]}  h3 {[%clk 0:02:12]} 15. Bh1 {[%clk 0:02:49]}  a6 {[%clk 0:01:55]} 16. Nc3 {[%clk 0:02:49]}  Bd7 {[%clk 0:01:54]} 17. a5 {[%clk 0:02:49]}  Bc6 {[%clk 0:01:54]} 18. f3 {[%clk 0:02:46]}  Bh6 {[%clk 0:01:52]} 19. f4 {[%clk 0:02:39]}  Ng4 {[%clk 0:01:49]} 20. Nd5 {[%clk 0:02:25]}  Bxd5 {[%clk 0:01:40]} 21. Bxd5 {[%clk 0:02:26]}  Ne3 {[%clk 0:01:33]} 22. Qe1 {[%clk 0:02:26]}  exf4 {[%clk 0:01:20]} 23. gxf4 {[%clk 0:02:26]}  Nxd5 {[%clk 0:01:18]} 24. cxd5 {[%clk 0:02:24]}  Nxd3 {[%clk 0:01:16]} 25. exd3 {[%clk 0:02:17]}  Rxe1 {[%clk 0:01:17]} 26. Raxe1 {[%clk 0:02:18]}  Qh4 {[%clk 0:01:16]} 27. Ne4 {[%clk 0:02:18]}  Qg4+ {[%clk 0:01:14]} 28. Kf2 {[%clk 0:02:10]}  Qg2+ {[%clk 0:01:04]} 29. Ke3 {[%clk 0:02:10]}  Qxb2 {[%clk 0:01:05]} 30. Rb1 {[%clk 0:02:06]}  Qxh2 {[%clk 0:00:52]} 31. Rf2 {[%clk 0:02:04]}  Bxf4+ {[%clk 0:00:49]} 32. Kf3 {[%clk 0:02:00]}  Qxf2+ {[%clk 0:00:36]} 33. Nxf2 {[%clk 0:02:01]}  Bd2 {[%clk 0:00:36]} 34. Rxb7 {[%clk 0:01:54]}  Bxa5 {[%clk 0:00:37]} 35. Nxh3 {[%clk 0:01:52]}  Bd2 {[%clk 0:00:30]} 36. Ke2 {[%clk 0:01:46]}  Bh6 {[%clk 0:00:30]} 37. Nf2 {[%clk 0:01:34]}  f5 {[%clk 0:00:23]} 38. Rd7 {[%clk 0:01:25]}  Bf8 {[%clk 0:00:20]} 39. Nh3 {[%clk 0:01:25]}  a5 {[%clk 0:00:19]} 40. Rb7 {[%clk 0:00:57]}  a4 {[%clk 0:00:19]} 41. Rb2 {[%clk 0:00:58]}  a3 {[%clk 0:00:19]} 42. Ra2 {[%clk 0:00:58]}  Bg7 {[%clk 0:00:14]} 43. Nf4 {[%clk 0:00:59]}  Kf7 {[%clk 0:00:14]} 44. Ne6 {[%clk 0:00:58]}  Bb2 {[%clk 0:00:13]} 45. Nc7 {[%clk 0:00:57]}  Ra5 {[%clk 0:00:13]} 46. Kd1 {[%clk 0:00:52]}  g5 {[%clk 0:00:12]} 47. Ne6 {[%clk 0:00:50]}  g4 {[%clk 0:00:12]} 48. Nf4 {[%clk 0:00:49]}  Kf6 {[%clk 0:00:11]} 49. Ke2 {[%clk 0:00:49]}  Ke5 {[%clk 0:00:11]} 50. Ng6+ {[%clk 0:00:42]}  Kd4 {[%clk 0:00:11]} 51. Ne7 {[%clk 0:00:41]}  Kc3 {[%clk 0:00:11]} 52. Nxf5 {[%clk 0:00:34]}  Kb3 {[%clk 0:00:11]} 53. Rxa3+ {[%clk 0:00:34]}  Bxa3 {[%clk 0:00:11]} 54. Ne3 {[%clk 0:00:35]}  Bc1 {[%clk 0:00:09]} 55. Nxg4 {[%clk 0:00:31]}  Rxd5 {[%clk 0:00:10]} 56. Nf6 {[%clk 0:00:31]}  Rc5 {[%clk 0:00:10]} 57. Ne4 {[%clk 0:00:31]}  Rc6 {[%clk 0:00:10]} 58. Kf3 {[%clk 0:00:28]}  d5 {[%clk 0:00:11]} 59. Ng3 {[%clk 0:00:28]}  Bb2 {[%clk 0:00:11]} 60. Nf5 {[%clk 0:00:27]}  Rf6 {[%clk 0:00:11]} 61. Kg4 {[%clk 0:00:27]}  Rxf5 {[%clk 0:00:11]} 62. Kxf5 {[%clk 0:00:28]}  Kc3 {[%clk 0:00:12]} 0-1


[Site "https://www.chess.com"]

[Event "Titled Tuesday Blitz April 25 Early 2023"]
[White "hakanazeri2"]
[Black "Molina, Roberto Junio Brito"]
[BlackFideId "2109450"]
[WhiteElo "2634"]
[BlackElo "2376"]
[Result "0-1"]
[Round "09"]
[TimeControl "180+2"]
[Date "2023.04.25"]
[WhiteClock "0:00:08"]
[BlackClock "0:00:08"]

1. d4 {[%clk 0:03:00]}  d5 {[%clk 0:02:59]} 2. c4 {[%clk 0:02:57]}  c6 {[%clk 0:02:59]} 3. Nd2 {[%clk 0:02:47]}  Nf6 {[%clk 0:02:57]} 4. Ngf3 {[%clk 0:02:46]}  Bf5 {[%clk 0:02:52]} 5. b3 {[%clk 0:02:44]}  e6 {[%clk 0:02:51]} 6. e3 {[%clk 0:02:42]}  h6 {[%clk 0:02:50]} 7. Be2 {[%clk 0:02:41]}  Nbd7 {[%clk 0:02:49]} 8. O-O {[%clk 0:02:40]}  Bd6 {[%clk 0:02:46]} 9. Bb2 {[%clk 0:02:41]}  Qe7 {[%clk 0:02:46]} 10. Ne5 {[%clk 0:02:41]}  O-O {[%clk 0:02:43]} 11. Ndf3 {[%clk 0:02:39]}  Ne4 {[%clk 0:02:42]} 12. Nxd7 {[%clk 0:02:35]}  Qxd7 {[%clk 0:02:42]} 13. Bd3 {[%clk 0:02:34]}  Qe7 {[%clk 0:02:38]} 14. Qe2 {[%clk 0:02:28]}  Rae8 {[%clk 0:02:25]} 15. h3 {[%clk 0:02:22]}  Nf6 {[%clk 0:02:17]} 16. Nd2 {[%clk 0:02:18]}  Bxd3 {[%clk 0:02:16]} 17. Qxd3 {[%clk 0:02:19]}  e5 {[%clk 0:02:14]} 18. dxe5 {[%clk 0:02:09]}  Bxe5 {[%clk 0:02:15]} 19. Bxe5 {[%clk 0:02:08]}  Qxe5 {[%clk 0:02:16]} 20. Nf3 {[%clk 0:02:08]}  Qe4 {[%clk 0:02:15]} 21. Qxe4 {[%clk 0:02:08]}  Rxe4 {[%clk 0:02:10]} 22. Rfd1 {[%clk 0:02:04]}  Rfe8 {[%clk 0:02:09]} 23. Rac1 {[%clk 0:02:02]}  g6 {[%clk 0:02:07]} 24. Rd4 {[%clk 0:02:01]}  Kf8 {[%clk 0:02:03]} 25. b4 {[%clk 0:02:00]}  Rxd4 {[%clk 0:01:58]} 26. Nxd4 {[%clk 0:02:00]}  dxc4 {[%clk 0:01:55]} 27. Rxc4 {[%clk 0:02:01]}  Ne4 {[%clk 0:01:48]} 28. a3 {[%clk 0:01:55]}  Nd6 {[%clk 0:01:45]} 29. Rc5 {[%clk 0:01:55]}  Ke7 {[%clk 0:01:44]} 30. a4 {[%clk 0:01:52]}  Kd7 {[%clk 0:01:43]} 31. Rc2 {[%clk 0:01:44]}  Re5 {[%clk 0:01:40]} 32. Kf1 {[%clk 0:01:22]}  f5 {[%clk 0:01:37]} 33. Ke2 {[%clk 0:01:20]}  f4 {[%clk 0:01:31]} 34. Kd3 {[%clk 0:01:19]}  fxe3 {[%clk 0:01:31]} 35. fxe3 {[%clk 0:01:20]}  Ne4 {[%clk 0:01:23]} 36. Rc1 {[%clk 0:01:11]}  b6 {[%clk 0:01:13]} 37. Nxc6 {[%clk 0:01:03]}  Re8 {[%clk 0:00:54]} 38. Nxa7 {[%clk 0:00:59]}  Nd6 {[%clk 0:00:46]} 39. Nc6 {[%clk 0:00:49]}  Ra8 {[%clk 0:00:46]} 40. Ne5+ {[%clk 0:00:47]}  Ke6 {[%clk 0:00:46]} 41. Nxg6 {[%clk 0:00:47]}  Rxa4 {[%clk 0:00:46]} 42. Rb1 {[%clk 0:00:35]}  Ra3+ {[%clk 0:00:43]} 43. Ke2 {[%clk 0:00:35]}  Ne4 {[%clk 0:00:39]} 44. Rc1 {[%clk 0:00:31]}  Ra2+ {[%clk 0:00:34]} 45. Kf3 {[%clk 0:00:31]}  Ng5+ {[%clk 0:00:33]} 46. Kg3 {[%clk 0:00:31]}  Kf5 {[%clk 0:00:28]} 47. Nh4+ {[%clk 0:00:30]}  Ke4 {[%clk 0:00:28]} 48. Rc6 {[%clk 0:00:27]}  b5 {[%clk 0:00:25]} 49. Rxh6 {[%clk 0:00:25]}  Rb2 {[%clk 0:00:23]} 50. Rh5 {[%clk 0:00:24]}  Nf7 {[%clk 0:00:22]} 51. Rxb5 {[%clk 0:00:24]}  Kxe3 {[%clk 0:00:21]} 52. Nf3 {[%clk 0:00:21]}  Nd6 {[%clk 0:00:19]} 53. Re5+ {[%clk 0:00:20]}  Ne4+ {[%clk 0:00:19]} 54. Kh2 {[%clk 0:00:20]}  Kf4 {[%clk 0:00:18]} 55. Re7 {[%clk 0:00:18]}  Rxb4 {[%clk 0:00:18]} 56. Rf7+ {[%clk 0:00:18]}  Ke3 {[%clk 0:00:18]} 57. h4 {[%clk 0:00:18]}  Nf2 {[%clk 0:00:18]} 58. h5 {[%clk 0:00:17]}  Rb5 {[%clk 0:00:15]} 59. Kg3 {[%clk 0:00:15]}  Rxh5 {[%clk 0:00:13]} 60. Re7+ {[%clk 0:00:15]}  Ne4+ {[%clk 0:00:14]} 61. Kg4 {[%clk 0:00:16]}  Rd5 {[%clk 0:00:12]} 62. g3 {[%clk 0:00:13]}  Ra5 {[%clk 0:00:10]} 63. Nd2 {[%clk 0:00:08]}  Kxd2 {[%clk 0:00:09]} 64. Rxe4 {[%clk 0:00:08]}  Kd3 {[%clk 0:00:09]} 65. Re8 {[%clk 0:00:08]}  Kd4 {[%clk 0:00:09]} 66. Kh4 {[%clk 0:00:07]}  Kd5 {[%clk 0:00:06]} 67. g4 {[%clk 0:00:07]}  Kd6 {[%clk 0:00:07]} 68. g5 {[%clk 0:00:08]}  Kd7 {[%clk 0:00:07]} 69. Re1 {[%clk 0:00:08]}  Ra1 {[%clk 0:00:08]} 70. Kh5 {[%clk 0:00:08]}  Rxe1 {[%clk 0:00:08]} 0-1


[Site "https://www.chess.com"]